[Event "*** Titled Tuesday Blitz"]
[Site "Chess.com"]
[Date "2021.02.09"]
[Round "1"]
[White "onetowin"]
[Black "awesomevishesh"]
[Result "0-1"]
[WhiteElo "2007"]
[BlackElo "2481"]
[TimeControl "180+1"]
[EndTime "10:07:56 PST"]
[Termination "awesomevishesh won by resignation"]

1. d4 {[%clk 0:02:58.3]} 1... Nf6 {[%clk 0:02:59]} 2. Nc3 {[%clk 0:02:56.7]}
2... d5 {[%clk 0:02:58.5]} 3. Bf4 {[%clk 0:02:56.1]} 3... g6 {[%clk 0:02:58.2]}
4. e3 {[%clk 0:02:46.5]} 4... Bg7 {[%clk 0:02:57.6]} 5. Bd3 {[%clk 0:02:45.8]}
5... O-O {[%clk 0:02:55.9]} 6. h4 {[%clk 0:02:42.8]} 6... h5 {[%clk 0:02:49.3]}
7. Nf3 {[%clk 0:02:36.2]} 7... c6 {[%clk 0:02:41.5]} 8. Ne5 {[%clk 0:02:35.6]}
8... Nbd7 {[%clk 0:02:40.9]} 9. Qe2 {[%clk 0:02:32.5]} 9... Nxe5 {[%clk
0:02:40.1]} 10. dxe5 {[%clk 0:02:31.1]} 10... Ng4 {[%clk 0:02:38.6]} 11. f3
{[%clk 0:02:07.2]} 11... Nxe5 {[%clk 0:02:37.9]} 12. O-O-O {[%clk 0:02:05.6]}
12... Qa5 {[%clk 0:02:30.4]} 13. Kb1 {[%clk 0:01:55.2]} 13... Nxd3 {[%clk
0:02:26]} 14. Qxd3 {[%clk 0:01:52.6]} 14... Bf5 {[%clk 0:02:25.6]} 15. e4 {[%clk
0:01:51.1]} 15... dxe4 {[%clk 0:02:25.5]} 16. fxe4 {[%clk 0:01:51.9]} 16... Bg4
{[%clk 0:02:23.1]} 17. Rdf1 {[%clk 0:01:50.2]} 17... Rfd8 {[%clk 0:02:21.9]} 18.
Qe3 {[%clk 0:01:49.4]} 18... Be6 {[%clk 0:02:16.3]} 19. e5 {[%clk 0:01:44.9]}
19... b5 {[%clk 0:02:10.3]} 20. b3 {[%clk 0:01:39.4]} 20... Rd7 {[%clk
0:01:56.3]} 21. Ne4 {[%clk 0:01:38.8]} 21... Bf5 {[%clk 0:01:16.7]} 22. Nc5
{[%clk 0:01:27.2]} 22... Rd5 {[%clk 0:01:15.7]} 23. Bg3 {[%clk 0:01:00.1]} 23...
Qa3 {[%clk 0:01:06.7]} 24. Rxf5 {[%clk 0:00:43]} 24... Qxc5 {[%clk 0:00:39.4]}
25. Rf3 {[%clk 0:00:38]} 25... Bxe5 {[%clk 0:00:31.3]} 26. Bxe5 {[%clk
0:00:29.2]} 26... Rxe5 {[%clk 0:00:30.4]} 27. Qd3 {[%clk 0:00:26]} 27... Qd6
{[%clk 0:00:23.3]} 28. Qxd6 {[%clk 0:00:19.6]} 28... exd6 {[%clk 0:00:22.8]} 29.
Rd1 {[%clk 0:00:20]} 29... d5 {[%clk 0:00:19.6]} 30. Rdd3 {[%clk 0:00:20.3]}
30... Rae8 {[%clk 0:00:18.6]} 31. Rf6 {[%clk 0:00:19.9]} 31... R8e6 {[%clk
0:00:18.5]} 32. Rdf3 {[%clk 0:00:19.6]} 32... Kg7 {[%clk 0:00:18.2]} 33. R6f4
{[%clk 0:00:16.8]} 33... Re1+ {[%clk 0:00:17]} 34. Kb2 {[%clk 0:00:16.2]} 34...
f5 {[%clk 0:00:17]} 35. Rf2 {[%clk 0:00:15.8]} 35... Kf6 {[%clk 0:00:16.8]} 36.
Rd2 {[%clk 0:00:15.4]} 36... R6e4 {[%clk 0:00:16.5]} 37. Rxe4 {[%clk 0:00:14.5]}
37... fxe4 {[%clk 0:00:15.4]} 38. Rf2+ {[%clk 0:00:14.3]} 38... Ke5 {[%clk
0:00:14.6]} 39. Rf7 {[%clk 0:00:13.4]} 39... e3 {[%clk 0:00:14.5]} 40. Re7+
{[%clk 0:00:12.7]} 40... Kf4 {[%clk 0:00:10.1]} 41. Kc3 {[%clk 0:00:11.1]} 41...
Rd1 {[%clk 0:00:09.9]} 42. Rf7+ {[%clk 0:00:08.8]} 42... Kg4 {[%clk 0:00:09.9]}
43. Re7 {[%clk 0:00:07.9]} 43... d4+ {[%clk 0:00:10.1]} 44. Kb2 {[%clk
0:00:06.8]} 44... Kxh4 {[%clk 0:00:10]} 45. Re4+ {[%clk 0:00:06.3]} 45... Kg3
{[%clk 0:00:10.1]} 46. Re6 {[%clk 0:00:05.8]} 46... g5 {[%clk 0:00:09.6]} 47.
Rxc6 {[%clk 0:00:05.6]} 47... e2 {[%clk 0:00:09.7]} 48. Re6 {[%clk 0:00:05]}
48... e1=Q {[%clk 0:00:09.6]} 0-1

[Event "*** Titled Tuesday Blitz"]
[Site "Chess.com"]
[Date "2021.02.09"]
[Round "1"]
[White "Nikolaj_6"]
[Black "Cambek64"]
[Result "1-0"]
[WhiteElo "2652"]
[BlackElo "2336"]
[TimeControl "180+1"]
[EndTime "10:07:59 PST"]
[Termination "Nikolaj_6 won by resignation"]

1. e4 {[%clk 0:03:00.9]} 1... e6 {[%clk 0:02:58.6]} 2. d4 {[%clk 0:03:00.2]}
2... d5 {[%clk 0:02:58.8]} 3. Nc3 {[%clk 0:02:59.7]} 3... Nc6 {[%clk 0:02:59.3]}
4. Nf3 {[%clk 0:02:58.4]} 4... Nf6 {[%clk 0:02:59.2]} 5. e5 {[%clk 0:02:57.3]}
5... Ne4 {[%clk 0:02:59.1]} 6. Ne2 {[%clk 0:02:57]} 6... f6 {[%clk 0:02:56.7]}
7. Ng3 {[%clk 0:02:56.5]} 7... fxe5 {[%clk 0:02:26.8]} 8. Bb5 {[%clk 0:02:53.6]}
8... exd4 {[%clk 0:02:18.9]} 9. Nxe4 {[%clk 0:02:49]} 9... dxe4 {[%clk
0:02:15.7]} 10. Nxd4 {[%clk 0:02:49.1]} 10... Bd7 {[%clk 0:02:00.2]} 11. Bxc6
{[%clk 0:02:36.3]} 11... Bxc6 {[%clk 0:01:58]} 12. Qh5+ {[%clk 0:02:33.8]} 12...
Kd7 {[%clk 0:01:36.6]} 13. Bg5 {[%clk 0:02:15.3]} 13... Qe8 {[%clk 0:01:35]} 14.
Qg4 {[%clk 0:02:09.9]} 14... Qg6 {[%clk 0:01:33.5]} 15. O-O-O {[%clk 0:02:08.8]}
15... Bd6 {[%clk 0:01:30.1]} 16. Nxc6 {[%clk 0:01:46.6]} 16... Kxc6 {[%clk
0:01:29]} 17. Qh4 {[%clk 0:01:39.5]} 17... Raf8 {[%clk 0:01:15.6]} 18. Kb1
{[%clk 0:01:34.5]} 18... h6 {[%clk 0:01:10.7]} 19. Be3 {[%clk 0:01:34.2]} 19...
e5 {[%clk 0:00:49.2]} 20. g3 {[%clk 0:01:23.9]} 20... b6 {[%clk 0:00:48.7]} 21.
Qh3 {[%clk 0:01:21.5]} 21... Kb7 {[%clk 0:00:46.8]} 22. Rhe1 {[%clk 0:01:20.8]}
22... Rf3 {[%clk 0:00:40.4]} 23. Qd7 {[%clk 0:01:17.5]} 23... Kb8 {[%clk
0:00:38.8]} 24. a4 {[%clk 0:01:13.5]} 24... Qe8 {[%clk 0:00:31.4]} 25. Qxg7
{[%clk 0:01:07.4]} 25... Rhf8 {[%clk 0:00:24.2]} 26. Qxh6 {[%clk 0:01:01.1]}
26... Qxa4 {[%clk 0:00:23.1]} 27. Rxd6 {[%clk 0:00:56.5]} 27... cxd6 {[%clk
0:00:22.3]} 28. Qxd6+ {[%clk 0:00:56.4]} 28... Kb7 {[%clk 0:00:22.4]} 29. Qxe5
{[%clk 0:00:52.3]} 29... Rc8 {[%clk 0:00:20.1]} 30. Rc1 {[%clk 0:00:49.5]} 30...
Qc6 {[%clk 0:00:20.1]} 31. h4 {[%clk 0:00:46.9]} 31... a5 {[%clk 0:00:19.1]} 32.
h5 {[%clk 0:00:44.9]} 32... Rf7 {[%clk 0:00:19.3]} 33. g4 {[%clk 0:00:42.1]}
33... Rfc7 {[%clk 0:00:19.9]} 34. g5 {[%clk 0:00:35.6]} 34... Ka6 {[%clk
0:00:19.9]} 35. h6 {[%clk 0:00:34.8]} 35... Qa4 {[%clk 0:00:19.6]} 36. b3 {[%clk
0:00:32.7]} 36... Qb4 {[%clk 0:00:18.7]} 37. Qd4 {[%clk 0:00:30.4]} 37... Rc4
{[%clk 0:00:15.7]} 38. Qd2 {[%clk 0:00:22.8]} 38... Rc3 {[%clk 0:00:13.3]} 39.
Kb2 {[%clk 0:00:18.4]} 39... a4 {[%clk 0:00:13.7]} 40. Qd4 {[%clk 0:00:15.1]}
40... Rxb3+ {[%clk 0:00:12.6]} 41. cxb3 {[%clk 0:00:13.9]} 41... Qxb3+ {[%clk
0:00:13.2]} 42. Ka1 {[%clk 0:00:13.3]} 42... Qa3+ {[%clk 0:00:13.8]} 43. Kb1
{[%clk 0:00:13.4]} 43... Qb3+ {[%clk 0:00:13.7]} 44. Qb2 {[%clk 0:00:13.4]}
44... Qd3+ {[%clk 0:00:12.2]} 45. Ka1 {[%clk 0:00:12.5]} 45... Rxc1+ {[%clk
0:00:05.9]} 46. Qxc1 {[%clk 0:00:12]} 46... a3 {[%clk 0:00:05]} 47. Ka2 {[%clk
0:00:10.8]} 47... b5 {[%clk 0:00:04.2]} 48. Qxa3+ {[%clk 0:00:10.7]} 1-0

[Event "*** Titled Tuesday Blitz"]
[Site "Chess.com"]
[Date "2021.02.09"]
[Round "1"]
[White "KaterinaMiroshnik"]
[Black "Smile2005"]
[Result "0-1"]
[WhiteElo "2601"]
[BlackElo "2328"]
[TimeControl "180+1"]
[EndTime "10:07:59 PST"]
[Termination "Smile2005 won by resignation"]

1. d3 {[%clk 0:03:00.4]} 1... g6 {[%clk 0:02:58.1]} 2. Nd2 {[%clk 0:03:01]} 2...
Bg7 {[%clk 0:02:58.4]} 3. Ngf3 {[%clk 0:03:01.9]} 3... Nf6 {[%clk 0:02:58.6]} 4.
e4 {[%clk 0:03:02.8]} 4... O-O {[%clk 0:02:59.1]} 5. Be2 {[%clk 0:03:03.6]} 5...
d6 {[%clk 0:02:59.5]} 6. O-O {[%clk 0:03:04.5]} 6... c5 {[%clk 0:03:00.1]} 7. c3
{[%clk 0:03:05.4]} 7... Nc6 {[%clk 0:03:00.6]} 8. Qc2 {[%clk 0:03:06.3]} 8...
Rb8 {[%clk 0:02:59.7]} 9. Re1 {[%clk 0:03:06.8]} 9... b5 {[%clk 0:02:59.9]} 10.
a3 {[%clk 0:03:06.3]} 10... a5 {[%clk 0:02:59.5]} 11. Nf1 {[%clk 0:03:06.2]}
11... Bd7 {[%clk 0:02:59]} 12. Bd2 {[%clk 0:03:05.7]} 12... b4 {[%clk
0:02:54.6]} 13. axb4 {[%clk 0:03:03.3]} 13... axb4 {[%clk 0:02:54.8]} 14. Ng3
{[%clk 0:03:03.1]} 14... Qb6 {[%clk 0:02:46.5]} 15. Be3 {[%clk 0:02:59.1]} 15...
Ng4 {[%clk 0:02:42.8]} 16. Bd2 {[%clk 0:02:58.6]} 16... bxc3 {[%clk 0:02:08.3]}
17. bxc3 {[%clk 0:02:59.5]} 17... Qb2 {[%clk 0:02:08.2]} 18. Rec1 {[%clk
0:02:58.2]} 18... Be6 {[%clk 0:02:01.1]} 19. h3 {[%clk 0:02:51.1]} 19... Nge5
{[%clk 0:02:00.5]} 20. Ng5 {[%clk 0:02:44.5]} 20... Qxc2 {[%clk 0:01:41.7]} 21.
Rxc2 {[%clk 0:02:43.4]} 21... Bb3 {[%clk 0:01:42.4]} 22. Rcc1 {[%clk 0:02:43.1]}
22... h6 {[%clk 0:01:40.2]} 23. Nf3 {[%clk 0:02:41.5]} 23... Nxf3+ {[%clk
0:01:40.3]} 24. Bxf3 {[%clk 0:02:41.1]} 24... Ne5 {[%clk 0:01:40.5]} 25. Be2
{[%clk 0:02:41.1]} 25... Rb7 {[%clk 0:01:25.1]} 26. f4 {[%clk 0:02:39.6]} 26...
Nc6 {[%clk 0:01:24.6]} 27. Nf1 {[%clk 0:02:37.8]} 27... Rfb8 {[%clk 0:01:24.3]}
28. Ne3 {[%clk 0:02:37.7]} 28... e6 {[%clk 0:01:24.6]} 29. Kf2 {[%clk
0:02:36.6]} 29... d5 {[%clk 0:01:22.2]} 30. exd5 {[%clk 0:02:29.5]} 30... exd5
{[%clk 0:01:22]} 31. Bf3 {[%clk 0:02:29.7]} 31... Ne7 {[%clk 0:01:17.6]} 32. Ra5
{[%clk 0:02:16.4]} 32... d4 {[%clk 0:01:04]} 33. Nd1 {[%clk 0:02:06.3]} 33...
Rb5 {[%clk 0:00:57.9]} 34. Rxb5 {[%clk 0:02:04.7]} 34... Rxb5 {[%clk 0:00:56]}
35. c4 {[%clk 0:02:04.2]} 35... Rb6 {[%clk 0:00:45.2]} 36. Rb1 {[%clk
0:02:02.5]} 36... Nc8 {[%clk 0:00:39.3]} 37. Bd5 {[%clk 0:01:55.4]} 37... Bc2
{[%clk 0:00:36.8]} 38. Rxb6 {[%clk 0:01:50.9]} 38... Nxb6 {[%clk 0:00:37.7]} 39.
Ke2 {[%clk 0:01:47.1]} 39... Nxd5 {[%clk 0:00:27.6]} 40. cxd5 {[%clk 0:01:48]}
40... Bb3 {[%clk 0:00:27.2]} 41. d6 {[%clk 0:01:47.4]} 41... Kf8 {[%clk
0:00:23.4]} 42. Nf2 {[%clk 0:01:41.3]} 42... f5 {[%clk 0:00:22.8]} 43. g4 {[%clk
0:01:34.2]} 43... Ke8 {[%clk 0:00:22.3]} 44. h4 {[%clk 0:01:34.2]} 44... Kd7
{[%clk 0:00:20.3]} 45. h5 {[%clk 0:01:31.3]} 45... fxg4 {[%clk 0:00:16.8]} 46.
hxg6 {[%clk 0:01:30]} 46... g3 {[%clk 0:00:16.8]} 47. Ne4 {[%clk 0:01:29.1]}
47... Bd5 {[%clk 0:00:13.5]} 48. Nxc5+ {[%clk 0:01:21.1]} 48... Kxd6 {[%clk
0:00:13.2]} 49. Ne4+ {[%clk 0:01:21.1]} 49... Bxe4 {[%clk 0:00:10.7]} 50. dxe4
{[%clk 0:01:21.5]} 50... h5 {[%clk 0:00:11.2]} 51. Kf3 {[%clk 0:01:20.5]} 51...
h4 {[%clk 0:00:11.3]} 52. f5 {[%clk 0:01:18.4]} 52... Ke5 {[%clk 0:00:11.1]} 53.
Bf4+ {[%clk 0:01:17.3]} 53... Kf6 {[%clk 0:00:11.3]} 54. Kg4 {[%clk 0:01:14.4]}
54... g2 {[%clk 0:00:10.4]} 55. Bh2 {[%clk 0:01:13.9]} 55... d3 {[%clk
0:00:10.4]} 56. Kf3 {[%clk 0:01:13.7]} 56... h3 {[%clk 0:00:09.3]} 57. Ke3
{[%clk 0:01:09.4]} 57... Kg5 {[%clk 0:00:09.5]} 58. Kxd3 {[%clk 0:01:04]} 58...
Be5 {[%clk 0:00:09.3]} 59. Bg1 {[%clk 0:00:49.7]} 59... Kf6 {[%clk 0:00:09.1]}
60. Ke3 {[%clk 0:00:39.8]} 60... h2 {[%clk 0:00:08.9]} 61. Kf2 {[%clk 0:00:33]}
61... h1=Q {[%clk 0:00:08]} 0-1

[Event "*** Titled Tuesday Blitz"]
[Site "Chess.com"]
[Date "2021.02.09"]
[Round "1"]
[White "jaramsdal"]
[Black "Aygehovit1992"]
[Result "0-1"]
[WhiteElo "2303"]
[BlackElo "2610"]
[TimeControl "180+1"]
[EndTime "10:07:59 PST"]
[Termination "Aygehovit1992 won by resignation"]

1. d4 {[%clk 0:02:58.6]} 1... Nf6 {[%clk 0:02:57.7]} 2. c4 {[%clk 0:02:57.9]}
2... g6 {[%clk 0:02:58.3]} 3. Nc3 {[%clk 0:02:57.9]} 3... d5 {[%clk 0:02:57.5]}
4. cxd5 {[%clk 0:02:57.4]} 4... Nxd5 {[%clk 0:02:57.4]} 5. e4 {[%clk 0:02:57.8]}
5... Nxc3 {[%clk 0:02:57.3]} 6. bxc3 {[%clk 0:02:57.1]} 6... Bg7 {[%clk
0:02:57.8]} 7. Be3 {[%clk 0:02:55.8]} 7... c5 {[%clk 0:02:57.1]} 8. Nf3 {[%clk
0:02:55]} 8... Qa5 {[%clk 0:02:57.4]} 9. Qd2 {[%clk 0:02:53.7]} 9... O-O {[%clk
0:02:57.6]} 10. Rc1 {[%clk 0:02:46.7]} 10... Rd8 {[%clk 0:02:56.5]} 11. d5
{[%clk 0:02:41.3]} 11... Nc6 {[%clk 0:02:54.8]} 12. Bd3 {[%clk 0:02:26.7]} 12...
Ne5 {[%clk 0:02:21.1]} 13. Nxe5 {[%clk 0:02:25.2]} 13... Bxe5 {[%clk 0:02:22]}
14. c4 {[%clk 0:02:19.4]} 14... Qxd2+ {[%clk 0:02:15.9]} 15. Kxd2 {[%clk
0:01:55.7]} 15... b6 {[%clk 0:02:16.8]} 16. f4 {[%clk 0:01:54.6]} 16... Bg7
{[%clk 0:02:16.7]} 17. e5 {[%clk 0:01:46.4]} 17... f6 {[%clk 0:02:15.2]} 18. e6
{[%clk 0:01:31.3]} 18... f5 {[%clk 0:02:14.5]} 19. Bc2 {[%clk 0:01:27.8]} 19...
b5 {[%clk 0:02:13.1]} 20. Bb3 {[%clk 0:01:26.4]} 20... bxc4 {[%clk 0:02:07.5]}
21. Bxc4 {[%clk 0:01:27.3]} 21... Bb7 {[%clk 0:02:07.6]} 22. Bxc5 {[%clk
0:01:15.4]} 22... Bxd5 {[%clk 0:02:06.5]} 23. Bxd5 {[%clk 0:01:16.3]} 23...
Rxd5+ {[%clk 0:02:07.3]} 24. Ke2 {[%clk 0:01:12.8]} 24... Bd4 {[%clk 0:01:46.8]}
25. Bxe7 {[%clk 0:00:59.4]} 25... Re8 {[%clk 0:01:42.9]} 26. Rc7 {[%clk
0:00:56.8]} 26... Bb6 {[%clk 0:01:34.4]} 27. Rb7 {[%clk 0:00:57]} 27... Bc5
{[%clk 0:01:34.4]} 28. Bxc5 {[%clk 0:00:54.8]} 28... Rxc5 {[%clk 0:01:34.4]} 29.
e7 {[%clk 0:00:37.1]} 29... Ra5 {[%clk 0:01:32.6]} 30. Rd1 {[%clk 0:00:17.1]}
30... Kf7 {[%clk 0:01:31.4]} 31. Rdd7 {[%clk 0:00:13.7]} 31... Rxa2+ {[%clk
0:01:31.3]} 32. Kf3 {[%clk 0:00:14.3]} 32... a5 {[%clk 0:01:31.8]} 33. Ra7
{[%clk 0:00:11.3]} 33... a4 {[%clk 0:01:31.9]} 34. Rd4 {[%clk 0:00:10.5]} 34...
Ra3+ {[%clk 0:01:28.2]} 35. Kf2 {[%clk 0:00:09.1]} 35... Ra2+ {[%clk 0:01:12.4]}
36. Kf3 {[%clk 0:00:08.8]} 36... Rxe7 {[%clk 0:00:38.4]} 37. Raxa4 {[%clk
0:00:09.3]} 37... Rae2 {[%clk 0:00:36.2]} 38. Rd3 {[%clk 0:00:06.6]} 38... Re1
{[%clk 0:00:36.5]} 39. Rda3 {[%clk 0:00:04.6]} 39... Kg7 {[%clk 0:00:12.1]} 40.
Ra7 {[%clk 0:00:05.5]} 40... Rxa7 {[%clk 0:00:12.2]} 41. Rxa7+ {[%clk
0:00:05.9]} 41... Kh6 {[%clk 0:00:13.1]} 42. Ra3 {[%clk 0:00:06.4]} 42... Kh5
{[%clk 0:00:12.6]} 43. Kg3 {[%clk 0:00:06.9]} 43... h6 {[%clk 0:00:12.9]} 44. h3
{[%clk 0:00:07.3]} 44... g5 {[%clk 0:00:12.3]} 45. fxg5 {[%clk 0:00:08.2]} 45...
hxg5 {[%clk 0:00:13.2]} 46. Ra5 {[%clk 0:00:08.9]} 46... f4+ {[%clk 0:00:13.2]}
47. Kh2 {[%clk 0:00:09.4]} 47... Re2 {[%clk 0:00:13.8]} 48. h4 {[%clk
0:00:08.2]} 48... Kxh4 {[%clk 0:00:13]} 49. Ra8 {[%clk 0:00:08.1]} 49... f3
{[%clk 0:00:12.8]} 50. Rh8+ {[%clk 0:00:07.8]} 50... Kg4 {[%clk 0:00:12.6]} 51.
Rf8 {[%clk 0:00:06.6]} 51... Rxg2+ {[%clk 0:00:12.3]} 52. Kh1 {[%clk 0:00:07.1]}
52... Rb2 {[%clk 0:00:12.8]} 53. Kg1 {[%clk 0:00:07.5]} 53... Kg3 {[%clk
0:00:12.5]} 0-1

[Event "*** Titled Tuesday Blitz"]
[Site "Chess.com"]
[Date "2021.02.09"]
[Round "1"]
[White "FMOlexandrProhorov"]
[Black "vladgoncharov"]
[Result "0-1"]
[WhiteElo "2128"]
[BlackElo "2500"]
[TimeControl "180+1"]
[EndTime "10:07:59 PST"]
[Termination "vladgoncharov won by resignation"]

1. e4 {[%clk 0:02:57.6]} 1... e6 {[%clk 0:02:20.4]} 2. d4 {[%clk 0:02:55.9]}
2... d5 {[%clk 0:02:18.1]} 3. Nc3 {[%clk 0:02:55.2]} 3... Bb4 {[%clk 0:02:13.2]}
4. Ne2 {[%clk 0:02:53.1]} 4... dxe4 {[%clk 0:02:12.5]} 5. a3 {[%clk 0:02:52.9]}
5... Be7 {[%clk 0:02:12.5]} 6. Nxe4 {[%clk 0:02:51.7]} 6... Nd7 {[%clk
0:02:10.6]} 7. g3 {[%clk 0:02:50.1]} 7... Ngf6 {[%clk 0:02:08.4]} 8. Nxf6+
{[%clk 0:02:48.7]} 8... Bxf6 {[%clk 0:02:06.2]} 9. Bg2 {[%clk 0:02:49.6]} 9...
O-O {[%clk 0:02:05.6]} 10. O-O {[%clk 0:02:50]} 10... e5 {[%clk 0:02:05]} 11.
Be3 {[%clk 0:02:37.9]} 11... exd4 {[%clk 0:02:01.6]} 12. Bxd4 {[%clk 0:02:34.3]}
12... Ne5 {[%clk 0:01:59.1]} 13. h3 {[%clk 0:02:20.1]} 13... c6 {[%clk
0:01:55.7]} 14. f4 {[%clk 0:01:40.5]} 14... Nc4 {[%clk 0:01:51.2]} 15. b3 {[%clk
0:00:52.1]} 15... Nb6 {[%clk 0:01:47.6]} 16. c4 {[%clk 0:00:50.3]} 16... Bf5
{[%clk 0:01:41.8]} 17. g4 {[%clk 0:00:46.5]} 17... Bc2 {[%clk 0:01:41.3]} 18.
Qxc2 {[%clk 0:00:28.9]} 18... Bxd4+ {[%clk 0:01:40.1]} 19. Nxd4 {[%clk
0:00:28.8]} 19... Qxd4+ {[%clk 0:01:40.6]} 20. Kh1 {[%clk 0:00:27.7]} 20... Rfe8
{[%clk 0:01:39.6]} 21. Rad1 {[%clk 0:00:26.8]} 21... Qe3 {[%clk 0:01:38.9]} 22.
a4 {[%clk 0:00:16]} 22... a5 {[%clk 0:01:25.6]} 23. Rd3 {[%clk 0:00:15.6]} 23...
Qc5 {[%clk 0:01:24.7]} 24. Qd2 {[%clk 0:00:14.5]} 24... h6 {[%clk 0:01:10.2]}
25. f5 {[%clk 0:00:14.7]} 25... f6 {[%clk 0:01:01]} 26. Re1 {[%clk 0:00:15]}
26... Kh7 {[%clk 0:00:58.5]} 27. Re6 {[%clk 0:00:14.1]} 27... Rxe6 {[%clk
0:00:48.4]} 28. fxe6 {[%clk 0:00:13.9]} 28... Re8 {[%clk 0:00:48.3]} 29. Be4+
{[%clk 0:00:13.3]} 29... Kg8 {[%clk 0:00:45.3]} 30. Bf5 {[%clk 0:00:14.2]} 30...
g6 {[%clk 0:00:30.3]} 31. Bxg6 {[%clk 0:00:12.4]} 31... Rxe6 {[%clk 0:00:27.3]}
32. Bf5 {[%clk 0:00:11.3]} 32... Re7 {[%clk 0:00:21.6]} 33. Kg2 {[%clk
0:00:10.2]} 33... Kg7 {[%clk 0:00:21.3]} 34. Rd8 {[%clk 0:00:09.1]} 34... Qe5
{[%clk 0:00:17.9]} 35. Qf2 {[%clk 0:00:08.4]} 35... Qe3 {[%clk 0:00:16.8]} 36.
Rb8 {[%clk 0:00:08]} 36... Qxf2+ {[%clk 0:00:14]} 37. Kxf2 {[%clk 0:00:08.9]}
37... Kf7 {[%clk 0:00:13.3]} 38. c5 {[%clk 0:00:09]} 38... Nd7 {[%clk
0:00:13.3]} 39. Rxb7 {[%clk 0:00:06]} 39... Nxc5 {[%clk 0:00:13.3]} 40. Rb6
{[%clk 0:00:05.5]} 40... Re5 {[%clk 0:00:11]} 41. Kf3 {[%clk 0:00:05.6]} 41...
Ke7 {[%clk 0:00:10]} 42. Rxc6 {[%clk 0:00:05.9]} 42... Nxb3 {[%clk 0:00:09.5]}
43. Rc7+ {[%clk 0:00:06.3]} 43... Kd6 {[%clk 0:00:08.7]} 44. Rd7+ {[%clk
0:00:06.5]} 44... Kc6 {[%clk 0:00:08.2]} 45. Rf7 {[%clk 0:00:07.4]} 45... Nd4+
{[%clk 0:00:07.9]} 46. Kf2 {[%clk 0:00:06.5]} 46... Nxf5 {[%clk 0:00:07.5]} 47.
Rxf6+ {[%clk 0:00:05.7]} 47... Nd6 {[%clk 0:00:07.6]} 48. Rf5 {[%clk 0:00:06.6]}
48... Nxf5 {[%clk 0:00:06.9]} 49. gxf5 {[%clk 0:00:07]} 49... Rxf5+ {[%clk
0:00:07.4]} 50. Ke3 {[%clk 0:00:07.2]} 50... Rh5 {[%clk 0:00:07.4]} 51. Ke4
{[%clk 0:00:07.8]} 51... Rxh3 {[%clk 0:00:08]} 52. Kf4 {[%clk 0:00:07.9]} 52...
Rh4+ {[%clk 0:00:08.9]} 0-1

[Event "*** Titled Tuesday Blitz"]
[Site "Chess.com"]
[Date "2021.02.09"]
[Round "1"]
[White "Szparu"]
[Black "ChelsieMonica"]
[Result "1-0"]
[WhiteElo "2686"]
[BlackElo "2362"]
[TimeControl "180+1"]
[EndTime "10:08:04 PST"]
[Termination "Szparu won by resignation"]

1. d4 {[%clk 0:02:59.4]} 1... Nf6 {[%clk 0:02:57.3]} 2. c4 {[%clk 0:02:53.4]}
2... e6 {[%clk 0:02:52.7]} 3. Nc3 {[%clk 0:02:47.7]} 3... Bb4 {[%clk 0:02:50.1]}
4. f3 {[%clk 0:02:39]} 4... d5 {[%clk 0:02:46.6]} 5. a3 {[%clk 0:02:38]} 5...
Bxc3+ {[%clk 0:02:46.3]} 6. bxc3 {[%clk 0:02:38.1]} 6... O-O {[%clk 0:02:47.2]}
7. cxd5 {[%clk 0:02:33.5]} 7... exd5 {[%clk 0:02:47]} 8. e3 {[%clk 0:02:32.1]}
8... Bf5 {[%clk 0:02:44.4]} 9. Ne2 {[%clk 0:02:27]} 9... Re8 {[%clk 0:02:42.2]}
10. g4 {[%clk 0:02:26.8]} 10... Bg6 {[%clk 0:02:37.3]} 11. h4 {[%clk 0:02:18.9]}
11... h5 {[%clk 0:02:36.3]} 12. g5 {[%clk 0:02:18.9]} 12... Nfd7 {[%clk
0:02:36]} 13. Nf4 {[%clk 0:02:18.1]} 13... Nb6 {[%clk 0:02:31.9]} 14. Nxg6
{[%clk 0:02:04.9]} 14... fxg6 {[%clk 0:02:32.8]} 15. Bd3 {[%clk 0:02:04.6]}
15... Re6 {[%clk 0:02:32.2]} 16. Ra2 {[%clk 0:01:42.5]} 16... Nc6 {[%clk
0:02:28.8]} 17. Re2 {[%clk 0:01:37.4]} 17... Qe7 {[%clk 0:02:23.9]} 18. Qc2
{[%clk 0:01:36.8]} 18... Qf7 {[%clk 0:02:23]} 19. Rf1 {[%clk 0:01:29.3]} 19...
Rae8 {[%clk 0:02:21.7]} 20. e4 {[%clk 0:01:21.1]} 20... Rf8 {[%clk 0:02:01.7]}
21. a4 {[%clk 0:01:10.5]} 21... Qe7 {[%clk 0:01:48.5]} 22. Qa2 {[%clk
0:01:05.8]} 22... Qd6 {[%clk 0:01:15.4]} 23. e5 {[%clk 0:00:59.7]} 23... Qd8
{[%clk 0:01:09.4]} 24. a5 {[%clk 0:00:57.7]} 24... Nc8 {[%clk 0:01:09.6]} 25. f4
{[%clk 0:00:44.7]} 25... N6e7 {[%clk 0:01:07.1]} 26. c4 {[%clk 0:00:40.3]} 26...
c6 {[%clk 0:01:05.9]} 27. a6 {[%clk 0:00:40.2]} 27... b6 {[%clk 0:01:04.4]} 28.
Ba3 {[%clk 0:00:39.7]} 28... Rf7 {[%clk 0:01:03.2]} 29. Rf3 {[%clk 0:00:37.2]}
29... Nf5 {[%clk 0:01:03.4]} 30. cxd5 {[%clk 0:00:34.8]} 30... cxd5 {[%clk
0:01:02.9]} 31. Bxf5 {[%clk 0:00:33]} 31... gxf5 {[%clk 0:01:02.5]} 32. Rc2
{[%clk 0:00:31.4]} 32... Ne7 {[%clk 0:00:58.4]} 33. Bxe7 {[%clk 0:00:28.4]}
33... Rfxe7 {[%clk 0:00:55.5]} 34. Rfc3 {[%clk 0:00:28.4]} 34... Kh7 {[%clk
0:00:55.7]} 35. Rc8 {[%clk 0:00:28.2]} 35... Qd7 {[%clk 0:00:56.1]} 36. R2c7
{[%clk 0:00:16.9]} 36... Qb5 {[%clk 0:00:54.2]} 37. Qc2 {[%clk 0:00:16.1]} 37...
g6 {[%clk 0:00:48.3]} 38. Rxe7+ {[%clk 0:00:15.3]} 38... Rxe7 {[%clk 0:00:49.2]}
39. Rc7 {[%clk 0:00:16]} 39... Qa5+ {[%clk 0:00:46.7]} 40. Kf2 {[%clk
0:00:15.2]} 40... Rxc7 {[%clk 0:00:39.2]} 41. Qxc7+ {[%clk 0:00:16.1]} 41... Kg8
{[%clk 0:00:39.4]} 42. Qb8+ {[%clk 0:00:16.6]} 42... Kf7 {[%clk 0:00:36.5]} 43.
Qxa7+ {[%clk 0:00:17]} 43... Ke6 {[%clk 0:00:36.7]} 44. Ke2 {[%clk 0:00:06.9]}
44... Qa2+ {[%clk 0:00:35.4]} 45. Kd3 {[%clk 0:00:06.3]} 45... Qb3+ {[%clk
0:00:35.6]} 46. Kd2 {[%clk 0:00:06.6]} 46... Qb2+ {[%clk 0:00:36.1]} 47. Ke1
{[%clk 0:00:07.1]} 47... Qc1+ {[%clk 0:00:35.7]} 48. Ke2 {[%clk 0:00:07]} 48...
Qc2+ {[%clk 0:00:35.9]} 49. Ke1 {[%clk 0:00:07.5]} 49... Qe4+ {[%clk 0:00:35.2]}
50. Kd1 {[%clk 0:00:06.9]} 50... Qxd4+ {[%clk 0:00:35.6]} 51. Kc2 {[%clk
0:00:07.4]} 51... Qc4+ {[%clk 0:00:35.9]} 52. Kb2 {[%clk 0:00:07.5]} 52... Qe2+
{[%clk 0:00:35]} 53. Ka3 {[%clk 0:00:06.9]} 53... Qe3+ {[%clk 0:00:35.2]} 54.
Kb2 {[%clk 0:00:05.2]} 54... Qf2+ {[%clk 0:00:34.6]} 55. Kb3 {[%clk 0:00:05.3]}
55... Qxf4 {[%clk 0:00:34]} 56. Qxb6+ {[%clk 0:00:05.1]} 56... Kxe5 {[%clk
0:00:34.6]} 57. a7 {[%clk 0:00:05.1]} 57... Qf3+ {[%clk 0:00:32.4]} 58. Kb4
{[%clk 0:00:05.2]} 58... d4 {[%clk 0:00:31.9]} 59. Qb8+ {[%clk 0:00:04.1]} 59...
Ke6 {[%clk 0:00:32.2]} 60. a8=Q {[%clk 0:00:05]} 60... Qxa8 {[%clk 0:00:32.2]}
61. Qxa8 {[%clk 0:00:05.1]} 61... Ke5 {[%clk 0:00:32.7]} 62. Qf3 {[%clk
0:00:05.7]} 62... f4 {[%clk 0:00:32.4]} 63. Kc4 {[%clk 0:00:06.2]} 63... Kf5
{[%clk 0:00:32.4]} 64. Kxd4 {[%clk 0:00:06.6]} 1-0